[Event "2. kolo JP družstev 2019/2020"]
[Site "Jesenik, Czech Republic"]
[Date "2019.10.19"]
[Round "1.9"]
[White "Liewehr, Robert JES_D"]
[Black "Robotka, Tobias RET_C"]
[Result "1-0"]
[TimeControl "3600+10"]
[WhiteElo "1259"]
[BlackElo "1100"]

1. e4 {[%clk 00:59:13]} {[%emt 00:01:07]} e5 {[%clk 01:00:28]} {[%emt
00:00:03]} 2. Nf3 {[%clk 00:59:18]} {[%emt 00:00:04]} Nc6 {[%clk 01:00:27]}
{[%emt 00:00:12]} 3. d4 {[%clk 00:59:25]} {[%emt 00:00:03]} d6 {[%clk
01:00:18]} {[%emt 00:00:19]} 4. dxe5 {[%clk 00:59:15]} {[%emt 00:00:19]} Qe7
{[%clk 01:00:02]} {[%emt 00:00:26]} 5. Bg5 {[%clk 00:58:04]} {[%emt 00:01:22]}
Nf6 {[%clk 00:59:45]} {[%emt 00:00:26]} 6. exf6 {[%clk 00:57:54]} {[%emt
00:00:20]} Qxe4+ {[%clk 00:59:38]} {[%emt 00:00:17]} 7. Qe2 {[%clk 00:58:01]}
{[%emt 00:00:04]} Qxe2+ {[%clk 00:59:10]} {[%emt 00:00:37]} 8. Bxe2 {[%clk
00:58:06]} {[%emt 00:00:05]} Bg4 {[%clk 00:59:12]} {[%emt 00:00:09]} 9. O-O
{[%clk 00:58:09]} {[%emt 00:00:07]} O-O-O {[%clk 00:59:12]} {[%emt 00:00:10]}
10. h3 {[%clk 00:58:14]} {[%emt 00:00:04]} Bf5 {[%clk 00:59:17]} {[%emt
00:00:05]} 11. fxg7 {[%clk 00:57:44]} {[%emt 00:00:41]} Bxg7 {[%clk 00:59:22]}
{[%emt 00:00:02]} 12. Bxd8 {[%clk 00:57:49]} {[%emt 00:00:08]} Rxd8 {[%clk
00:59:28]} {[%emt 00:00:01]} 13. c3 {[%clk 00:57:54]} {[%emt 00:00:09]} h5
{[%clk 00:59:29]} {[%emt 00:00:08]} 14. Nbd2 {[%clk 00:57:43]} {[%emt
00:00:20]} Re8 {[%clk 00:59:24]} {[%emt 00:00:16]} 15. Rfe1 {[%clk 00:57:37]}
{[%emt 00:00:15]} Rg8 {[%clk 00:59:18]} {[%emt 00:00:16]} 16. Bb5 {[%clk
00:57:33]} {[%emt 00:00:14]} Bf6 {[%clk 00:59:13]} {[%emt 00:00:15]} 17. Kh2
{[%clk 00:57:07]} {[%emt 00:00:37]} Ne5 {[%clk 00:59:10]} {[%emt 00:00:13]} 18.
Nxe5 {[%clk 00:56:44]} {[%emt 00:00:32]} Bxe5+ {[%clk 00:59:12]} {[%emt
00:00:09]} 19. g3 {[%clk 00:56:50]} {[%emt 00:00:04]} a6 {[%clk 00:58:58]}
{[%emt 00:00:24]} 20. Bc4 {[%clk 00:56:53]} {[%emt 00:00:06]} h4 {[%clk
00:58:53]} {[%emt 00:00:16]} 21. Rxe5 {[%clk 00:56:25]} {[%emt 00:00:38]} dxe5
{[%emt 00:00:10]} 22. Nf3 {[%emt 00:01:10]} e4 {[%clk 00:57:21]} {[%emt
00:00:22]} 23. Nxh4 {[%clk 00:56:27]} {[%emt 00:00:07]} Rd8 {[%clk 00:56:49]}
{[%emt 00:00:40]} 24. Nxf5 {[%clk 00:55:44]} {[%emt 00:00:55]} Rd2 {[%clk
00:56:48]} {[%emt 00:00:10]} 25. Kg2 {[%clk 00:55:25]} {[%emt 00:00:30]} Rxb2
{[%clk 00:56:40]} {[%emt 00:00:18]} 26. Bxf7 {[%clk 00:55:08]} {[%emt
00:00:27]} Kd8 {[%clk 00:56:42]} {[%emt 00:00:08]} 27. Re1 {[%clk 00:55:12]}
{[%emt 00:00:05]} b5 {[%clk 00:56:30]} {[%emt 00:00:23]} 28. Rxe4 {[%clk
00:55:17]} {[%emt 00:00:06]} a5 {[%clk 00:56:25]} {[%emt 00:00:16]} 29. Rd4+
{[%clk 00:55:18]} {[%emt 00:00:07]} Kc8 {[%clk 00:56:31]} {[%emt 00:00:05]} 30.
Ne7+ {[%clk 00:55:25]} {[%emt 00:00:02]} Kb7 {[%clk 00:56:35]} {[%emt
00:00:06]} 31. Bd5+ {[%clk 00:55:32]} {[%emt 00:00:03]} Kb6 {[%clk 00:56:39]}
{[%emt 00:00:06]} 32. Nc8+ {[%clk 00:55:36]} {[%emt 00:00:06]} Kc5 {[%clk
00:56:41]} {[%emt 00:00:08]} 33. h4 {[%clk 00:54:53]} {[%emt 00:00:54]} b4
{[%clk 00:56:48]} {[%emt 00:00:03]} 34. Bf7 {[%clk 00:54:39]} {[%emt 00:00:24]}
bxc3 {[%clk 00:56:54]} {[%emt 00:00:04]} 35. Rc4+ {[%clk 00:54:47]} {[%emt
00:00:03]} Kb5 {[%clk 00:56:59]} {[%emt 00:00:05]} 36. Rxc3 {[%clk 00:54:54]}
{[%emt 00:00:02]} Rxa2 {[%clk 00:56:59]} {[%emt 00:00:09]} 37. Bxa2 {[%clk
00:55:01]} {[%emt 00:00:05]} Kb4 {[%clk 00:57:09]} 38. Re3 {[%clk 00:55:07]}
{[%emt 00:00:03]} a4 {[%clk 00:57:18]} {[%emt 00:00:02]} 39. h5 {[%clk
00:55:12]} {[%emt 00:00:04]} c5 {[%clk 00:57:27]} {[%emt 00:00:01]} 40. h6
{[%clk 00:55:10]} {[%emt 00:00:12]} c4 {[%clk 00:57:29]} {[%emt 00:00:08]} 41.
Bxc4 {[%clk 00:55:12]} {[%emt 00:00:07]} Kxc4 {[%clk 00:57:26]} {[%emt
00:00:11]} 42. h7 Kb4 {[%emt 00:00:05]} 43. h8=Q {[%clk 00:55:18]} {[%emt
00:00:02]} a3 {[%clk 00:57:32]} {[%emt 00:00:04]} 44. Qc3+ {[%clk 00:55:24]}
{[%emt 00:00:03]} Kb5 {[%clk 00:57:39]} {[%emt 00:00:04]} 45. Re4 {[%clk
00:55:25]} {[%emt 00:00:09]} a2 {[%clk 00:57:43]} {[%emt 00:00:05]} 46. Qa1
{[%clk 00:55:29]} {[%emt 00:00:06]} Kc6 {[%clk 00:57:47]} {[%emt 00:00:07]} 47.
Qxa2 {[%clk 00:55:35]} {[%emt 00:00:04]} Kc5 {[%clk 00:57:52]} {[%emt
00:00:05]} 48. Qc4# {[%emt 00:00:18]} 1-0

[Event "2. kolo JP družstev 2019/2020"]
[Site "Jesenik, Czech Republic"]
[Date "2019.10.19"]
[Round "1.10"]
[White "Bilek, Adam RET_C"]
[Black "Dockal, Karel st. JES_D"]
[Result "1/2-1/2"]
[TimeControl "3600+10"]
[WhiteElo "1000"]
[BlackElo "1000"]

1. e4 {[%clk 01:00:18]} {[%emt 00:00:01]} e5 {[%clk 01:00:12]} {[%emt
00:00:09]} 2. Nf3 {[%clk 01:00:18]} {[%emt 00:00:05]} Nc6 {[%clk 00:59:59]}
{[%emt 00:00:28]} 3. Nc3 {[%clk 01:00:19]} {[%emt 00:00:06]} Nf6 {[%clk
00:58:32]} {[%emt 00:01:40]} 4. Bc4 {[%clk 01:00:16]} {[%emt 00:00:08]} h6
{[%clk 00:58:04]} {[%emt 00:00:43]} 5. O-O {[%clk 00:59:56]} {[%emt 00:00:08]}
Bc5 {[%clk 00:57:26]} {[%emt 00:01:10]} 6. d3 {[%clk 00:59:42]} {[%emt
00:00:23]} Nd4 {[%clk 00:57:01]} {[%emt 00:00:36]} 7. Nxd4 {[%clk 00:59:29]}
{[%emt 00:00:22]} Bxd4 {[%clk 00:56:56]} {[%emt 00:00:16]} 8. Bd2 {[%clk
00:59:16]} {[%emt 00:00:22]} O-O {[%clk 00:56:18]} {[%emt 00:00:49]} 9. Rb1
{[%clk 00:59:10]} {[%emt 00:00:16]} c6 {[%clk 00:55:20]} {[%emt 00:01:05]} 10.
Qf3 {[%clk 00:59:09]} {[%emt 00:00:12]} d6 {[%clk 00:53:46]} {[%emt 00:01:45]}
11. Qg3 {[%clk 00:58:46]} {[%emt 00:00:24]} Kh8 {[%clk 00:51:02]} {[%emt
00:03:05]} 12. Be3 {[%clk 00:58:09]} {[%emt 00:00:46]} c5 {[%clk 00:49:39]}
{[%emt 00:01:34]} 13. Bxd4 {[%clk 00:58:03]} {[%emt 00:00:14]} cxd4 {[%clk
00:48:57]} {[%emt 00:00:53]} 14. Nd5 {[%clk 00:57:55]} {[%emt 00:00:13]} Be6
{[%clk 00:48:21]} {[%emt 00:00:51]} 15. Nxf6 {[%clk 00:57:43]} {[%emt
00:00:21]} Qxf6 {[%clk 00:47:43]} {[%emt 00:00:48]} 16. Bxe6 {[%clk 00:57:40]}
{[%emt 00:00:13]} Qxe6 {[%clk 00:47:19]} {[%emt 00:00:35]} 17. c3 {[%clk
00:57:31]} {[%emt 00:00:18]} Qxa2 {[%clk 00:44:54]} {[%emt 00:02:36]} 18. cxd4
{[%clk 00:57:07]} {[%emt 00:00:33]} Rfe8 {[%clk 00:43:05]} {[%emt 00:01:59]} 19.
dxe5 {[%clk 00:56:28]} {[%emt 00:00:49]} dxe5 {[%clk 00:42:01]} {[%emt
00:01:14]} 20. b4 {[%clk 00:56:16]} {[%emt 00:00:17]} b5 {[%clk 00:41:00]}
{[%emt 00:01:18]} 21. Ra1 {[%clk 00:56:11]} {[%emt 00:00:11]} Qb2 {[%clk
00:39:50]} {[%emt 00:01:22]} 22. Rab1 {[%clk 00:56:06]} {[%emt 00:00:12]} Qd4
{[%clk 00:39:31]} {[%emt 00:00:34]} 23. Rfe1 {[%clk 00:55:40]} {[%emt
00:00:31]} a5 {[%clk 00:38:56]} {[%emt 00:00:49]} 24. Qe3 {[%clk 00:53:21]}
{[%emt 00:02:29]} 1/2-1/2

[Event "2. kolo JP družstev 2019/2020"]
[Site "Jesenik, Czech Republic"]
[Date "2019.10.19"]
[Round "1.11"]
[White "Tschulik, Daniel JES_F"]
[Black "Cimburek, Jan RET_B"]
[Result "0-1"]
[TimeControl "3600+10"]
[WhiteElo "1000"]
[BlackElo "1638"]

1. e4 {[%clk 01:00:18]} {[%emt 00:00:02]} c5 {[%clk 01:00:03]} {[%emt
00:00:17]} 2. Bc4 {[%clk 01:00:20]} {[%emt 00:00:08]} g6 {[%clk 00:59:32]}
{[%emt 00:00:41]} 3. d3 {[%clk 01:00:20]} {[%emt 00:00:09]} Bg7 {[%clk
00:59:34]} {[%emt 00:00:09]} 4. Nc3 {[%clk 01:00:07]} {[%emt 00:00:23]} e6
{[%clk 00:58:58]} {[%emt 00:00:46]} 5. Nf3 {[%clk 01:00:02]} {[%emt 00:00:16]}
Ne7 {[%clk 00:58:49]} {[%emt 00:00:18]} 6. Be3 {[%clk 00:59:18]} {[%emt
00:00:54]} d6 {[%clk 00:58:38]} {[%emt 00:00:22]} 7. Qd2 {[%clk 00:58:49]}
{[%emt 00:00:39]} O-O {[%clk 00:58:38]} {[%emt 00:00:09]} 8. O-O-O {[%clk
00:58:48]} {[%emt 00:00:11]} Nbc6 {[%clk 00:58:30]} {[%emt 00:00:18]} 9. a3
{[%clk 00:58:36]} {[%emt 00:00:21]} a6 {[%clk 00:58:32]} {[%emt 00:00:08]} 10.
Kb1 {[%clk 00:57:50]} {[%emt 00:00:56]} b5 {[%clk 00:58:33]} {[%emt 00:00:10]}
11. Ba2 {[%clk 00:57:44]} {[%emt 00:00:16]} Rb8 {[%clk 00:58:08]} {[%emt
00:00:35]} 12. g3 {[%clk 00:57:04]} {[%emt 00:00:49]} a5 {[%clk 00:56:13]}
{[%emt 00:02:06]} 13. h4 {[%clk 00:56:29]} {[%emt 00:00:45]} b4 {[%clk
00:56:13]} {[%emt 00:00:10]} 14. axb4 {[%clk 00:56:31]} {[%emt 00:00:07]} axb4
{[%clk 00:56:12]} {[%emt 00:00:12]} 15. Ne2 {[%clk 00:55:51]} {[%emt 00:00:50]}
Ra8 {[%clk 00:56:02]} {[%emt 00:00:20]} 16. Ka1 {[%clk 00:55:36]} {[%emt
00:00:26]} Qa5 {[%clk 00:55:28]} {[%emt 00:00:43]} 17. Nc1 {[%clk 00:55:15]}
{[%emt 00:00:30]} Bc3 {[%clk 00:54:07]} {[%emt 00:01:31]} 18. Qe2 {[%clk
00:54:32]} {[%emt 00:00:54]} Qa3 {[%clk 00:53:45]} {[%emt 00:00:32]} 19. Bd4
{[%clk 00:53:45]} {[%emt 00:00:56]} Qxb2# {[%clk 00:53:37]} {[%emt 00:00:08]}
0-1

[Event "2. kolo JP družstev 2019/2020"]
[Site "Jesenik, Czech Republic"]
[Date "2019.10.19"]
[Round "1.12"]
[White "Cupr, Radomir RET_B"]
[Black "Vanicek, Daniel JES_F"]
[Result "1-0"]
[TimeControl "3600+10"]
[WhiteElo "1556"]
[BlackElo "1000"]

1. d4 {[%clk 01:00:18]} {[%emt 00:00:02]} d5 {[%clk 01:00:18]} {[%emt
00:00:03]} 2. Nf3 {[%clk 01:00:24]} {[%emt 00:00:04]} Nc6 {[%clk 01:00:21]}
{[%emt 00:00:07]} 3. e3 {[%clk 01:00:21]} {[%emt 00:00:13]} Bf5 {[%clk
01:00:27]} {[%emt 00:00:03]} 4. c4 {[%clk 01:00:02]} {[%emt 00:00:29]} e6
{[%clk 01:00:28]} {[%emt 00:00:09]} 5. c5 {[%clk 01:00:02]} {[%emt 00:00:11]}
b6 {[%clk 01:00:34]} {[%emt 00:00:04]} 6. b4 {[%clk 01:00:10]} {[%emt
00:00:02]} bxc5 {[%clk 01:00:28]} {[%emt 00:00:02]} 7. bxc5 Nf6 {[%emt
00:00:19]} 8. Bb5 {[%clk 00:59:20]} {[%emt 00:00:54]} Qd7 {[%clk 01:00:27]}
{[%emt 00:00:07]} 9. Qa4 {[%clk 00:59:18]} {[%emt 00:00:17]} a6 {[%clk
01:00:16]} {[%emt 00:00:22]} 10. Bxc6 {[%clk 00:59:22]} {[%emt 00:00:05]} Qxc6
{[%clk 01:00:20]} {[%emt 00:00:04]} 11. Qxc6+ {[%clk 00:59:30]} {[%emt
00:00:03]} Ke7 {[%emt 00:00:04]} 12. Qxa8 {[%emt 00:00:05]} g6 {[%clk
01:00:16]} {[%emt 00:00:05]} 13. Ne5 {[%clk 00:59:00]} {[%emt 00:00:40]} Bg7
{[%clk 01:00:18]} {[%emt 00:00:06]} 14. Qc6 {[%clk 00:58:57]} {[%emt 00:00:15]}
Rd8 {[%clk 01:00:21]} {[%emt 00:00:07]} 15. Qxc7+ {[%clk 00:58:59]} {[%emt
00:00:08]} Nd7 {[%clk 01:00:23]} {[%emt 00:00:07]} 16. c6 {[%clk 00:58:48]}
{[%emt 00:00:22]} Bxe5 {[%clk 01:00:27]} {[%emt 00:00:05]} 17. dxe5 {[%clk
00:58:47]} {[%emt 00:00:12]} h5 {[%clk 01:00:27]} {[%emt 00:00:10]} 18. cxd7
{[%clk 00:58:42]} {[%emt 00:00:14]} Rxd7 {[%clk 01:00:35]} {[%emt 00:00:02]} 19.
Ba3+ {[%clk 00:58:40]} {[%emt 00:00:13]} Kf8 {[%clk 01:00:38]} {[%emt
00:00:07]} 20. Qxd7+ {[%clk 00:58:40]} {[%emt 00:00:10]} Bxb1 {[%clk 01:00:44]}
{[%emt 00:00:04]} 21. Rxb1+ {[%clk 00:58:47]} {[%emt 00:00:04]} Kg7 {[%emt
00:00:04]} 22. Rb8 {[%emt 00:00:08]} Kh6 {[%clk 01:00:40]} {[%emt 00:00:02]} 23.
Qxf7 {[%clk 00:58:47]} {[%emt 00:00:09]} Kg5 {[%clk 01:00:44]} {[%emt
00:00:06]} 24. Qf6+ {[%clk 00:58:47]} {[%emt 00:00:10]} Kg4 {[%clk 01:00:50]}
{[%emt 00:00:04]} 25. f3# {[%clk 00:58:46]} {[%emt 00:00:12]} 1-0

[Event "2. kolo JP družstev 2019/2020"]
[Site "Jesenik, Czech Republic"]
[Date "2019.10.19"]
[Round "1.13"]
[White "Vanicek, Vojtech JES_F"]
[Black "Till, Jaroslav RET_B"]
[Result "0-1"]
[TimeControl "3600+10"]
[WhiteElo "1000"]
[BlackElo "1497"]

1. e4 {[%emt 00:00:05]} d5 {[%emt 00:00:11]} 2. exd5 {[%clk 00:59:23]} {[%emt
00:00:40]} Qxd5 {[%clk 01:00:18]} {[%emt 00:00:01]} 3. Nc3 {[%clk 00:59:16]}
{[%emt 00:00:19]} Qa5 {[%clk 01:00:22]} {[%emt 00:00:05]} 4. Bc4 {[%clk
00:58:31]} {[%emt 00:00:54]} Nf6 {[%clk 01:00:18]} {[%emt 00:00:14]} 5. Nf3
{[%clk 00:58:09]} {[%emt 00:00:33]} Bg4 {[%clk 01:00:22]} {[%emt 00:00:06]} 6.
O-O {[%clk 00:57:16]} {[%emt 00:01:03]} e6 {[%emt 00:00:15]} 7. h3 {[%emt
00:00:16]} Bh5 {[%emt 00:00:19]} 8. d3 {[%emt 00:00:32]} c6 {[%clk 00:58:57]}
{[%emt 00:00:13]} 9. a3 {[%clk 00:56:49]} {[%emt 00:00:38]} Bd6 {[%clk
00:58:34]} {[%emt 00:00:30]} 10. b4 {[%clk 00:56:11]} {[%emt 00:00:44]} Bxb4
{[%clk 00:58:19]} {[%emt 00:00:31]} 11. Bb2 {[%clk 00:55:44]} {[%emt 00:00:31]}
Bxc3 {[%clk 00:58:11]} {[%emt 00:00:23]} 12. Bxc3 {[%clk 00:55:15]} {[%emt
00:00:40]} Qxc3 {[%clk 00:57:43]} {[%emt 00:00:05]} 13. Rb1 {[%clk 00:54:20]}
{[%emt 00:01:37]} b5 {[%clk 00:57:09]} {[%emt 00:00:45]} 14. Bb3 {[%clk
00:54:15]} {[%emt 00:00:14]} a5 {[%clk 00:56:57]} {[%emt 00:00:23]} 15. a4
{[%clk 00:54:03]} {[%emt 00:00:23]} b4 {[%clk 00:57:02]} {[%emt 00:00:04]} 16.
Bc4 {[%clk 00:53:21]} {[%emt 00:00:51]} Bxf3 {[%clk 00:56:38]} {[%emt
00:00:35]} 17. gxf3 {[%clk 00:53:22]} {[%emt 00:00:08]} Qe5 {[%clk 00:56:10]}
{[%emt 00:00:33]} 18. Kh1 {[%clk 00:53:20]} {[%emt 00:00:18]} Qf5 {[%clk
00:56:02]} {[%emt 00:00:18]} 19. Rg1 {[%clk 00:53:16]} {[%emt 00:00:14]} Qxh3#
{[%emt 00:00:22]} 0-1

[Event "2. kolo JP družstev 2019/2020"]
[Site "Jesenik, Czech Republic"]
[Date "2019.10.19"]
[Round "1.14"]
[White "Ondrackova, Veronika RET_B"]
[Black "Pojmon, Lukas JES_F"]
[Result "1-0"]
[TimeControl "3600+10"]
[WhiteElo "1000"]
[BlackElo "1000"]

1. e4 {[%clk 01:00:10]} {[%emt 00:00:04]} e5 {[%clk 01:00:10]} {[%emt
00:00:14]} 2. Nf3 {[%clk 01:00:03]} {[%emt 00:00:12]} Bb4 {[%clk 00:59:55]}
{[%emt 00:00:31]} 3. Bc4 {[%clk 00:59:37]} {[%emt 00:00:24]} Nf6 {[%clk
00:59:55]} {[%emt 00:00:18]} 4. Nxe5 {[%clk 00:59:12]} {[%emt 00:00:29]} Qe7
{[%clk 00:59:49]} {[%emt 00:00:20]} 5. Nxf7 {[%clk 00:58:46]} {[%emt 00:00:40]}
Qxe4+ {[%emt 00:00:33]} 6. O-O {[%emt 00:00:11]} Qxc4 {[%clk 00:58:55]} {[%emt
00:00:21]} 7. Nxh8 {[%emt 00:00:16]} Bd6 {[%emt 00:00:09]} 8. Na3 {[%clk
00:57:46]} {[%emt 00:00:48]} Qd5 {[%clk 00:58:58]} {[%emt 00:00:04]} 9. Re1+
{[%emt 00:01:29]} Ne4 {[%clk 00:58:29]} {[%emt 00:00:03]} 10. b3 {[%clk
00:55:42]} {[%emt 00:01:18]} Qe5 {[%clk 00:58:36]} {[%emt 00:00:19]} 11. f3
{[%clk 00:54:32]} {[%emt 00:01:10]} Qxh2+ {[%emt 00:00:14]} 12. Kf1 {[%emt
00:00:47]} Qh1+ {[%emt 00:00:09]} 13. Ke2 {[%emt 00:00:40]} Qxg2+ {[%emt
00:00:30]} 14. Ke3 {[%emt 00:00:39]} Qf2+ {[%clk 00:54:47]} {[%emt 00:00:21]}
15. Kxe4 {[%clk 00:54:22]} {[%emt 00:01:06]} Qh4+ {[%clk 00:53:33]} {[%emt
00:00:14]} 16. Kd3+ {[%clk 00:54:16]} {[%emt 00:01:20]} Kd8 {[%clk 00:53:12]}
{[%emt 00:00:28]} 17. Bb2 {[%clk 00:53:30]} {[%emt 00:01:02]} Nc6 {[%clk
00:52:46]} {[%emt 00:00:33]} 18. Nf7# {[%emt 00:00:46]} 1-0

[Event "2. kolo JP družstev 2019/2020"]
[Site "Jesenik, Czech Republic"]
[Date "2019.10.19"]
[Round "1.15"]
[White "Vanicek, Matyas JES_F"]
[Black "Ondracek, Daniel RET_B"]
[Result "1-0"]
[TimeControl "3600+10"]
[WhiteElo "1000"]
[BlackElo "1000"]

1. e4 {[%clk 01:00:18]} {[%emt 00:00:02]} e5 {[%clk 01:00:19]} {[%emt
00:00:01]} 2. Bb5 {[%clk 00:59:03]} {[%emt 00:01:03]} Nc6 {[%emt 00:01:05]} 3.
Nc3 {[%clk 00:00:00]} {[%emt 00:00:14]} Bc5 {[%clk 00:00:00]} {[%emt 00:01:35]}
4. Nf3 {[%clk 00:58:57]} {[%emt 00:01:30]} Nf6 {[%clk 01:00:28]} {[%emt
00:00:22]} 5. d3 {[%clk 00:58:27]} {[%emt 00:00:12]} O-O {[%clk 01:00:00]}
{[%emt 00:00:49]} 6. Bg5 {[%clk 00:58:16]} {[%emt 00:00:22]} h6 {[%clk
00:59:53]} {[%emt 00:00:25]} 7. Bxf6 {[%clk 00:58:04]} {[%emt 00:00:16]} gxf6
{[%clk 00:59:52]} {[%emt 00:00:20]} 8. O-O {[%clk 00:57:44]} {[%emt 00:00:22]}
Kh8 {[%clk 00:59:45]} {[%emt 00:00:25]} 9. Nd5 {[%clk 00:57:14]} {[%emt
00:00:25]} Rg8 {[%clk 00:59:06]} {[%emt 00:00:48]} 10. Bxc6 {[%clk 00:57:21]}
{[%emt 00:00:24]} bxc6 {[%clk 00:58:56]} {[%emt 00:00:19]} 11. Nc3 {[%clk
00:56:18]} {[%emt 00:00:57]} Ba6 {[%clk 00:58:42]} {[%emt 00:00:34]} 12. Na4
{[%clk 00:55:33]} {[%emt 00:00:46]} Bf8 {[%clk 00:58:11]} {[%emt 00:00:55]} 13.
Qd2 {[%clk 00:55:06]} {[%emt 00:00:37]} Rb8 {[%clk 00:57:39]} {[%emt 00:00:36]}
14. b3 {[%clk 00:54:40]} {[%emt 00:00:28]} Bb4 {[%clk 00:57:34]} {[%emt
00:00:24]} 15. Qxh6# {[%clk 00:54:06]} {[%emt 00:00:23]} 1-0